[Event "Live Chess"]
[Site "Chess.com"]
[Date "2023.05.21"]
[Round "-"]
[White "JoeyCage"]
[Black "EdenHazard8"]
[Result "0-1"]
[WhiteElo "2262"]
[BlackElo "1946"]
[TimeControl "300"]
[EndTime "5:13:03 PDT"]
[Termination "EdenHazard8 won by checkmate"]

1. e4 {[%clk 0:04:57]} 1... c5 {[%clk 0:04:58.9]} 2. Nf3 {[%clk 0:04:55.8]} 2...
Nc6 {[%clk 0:04:58.8]} 3. d4 {[%clk 0:04:54.8]} 3... cxd4 {[%clk 0:04:58.7]} 4.
Nxd4 {[%clk 0:04:54.6]} 4... Nf6 {[%clk 0:04:58.6]} 5. Nc3 {[%clk 0:04:53.6]}
5... d6 {[%clk 0:04:57.9]} 6. Bg5 {[%clk 0:04:52.1]} 6... g6 {[%clk 0:04:56.2]}
7. Bxf6 {[%clk 0:04:50.8]} 7... exf6 {[%clk 0:04:56.1]} 8. Qd2 {[%clk
0:04:50.2]} 8... Bg7 {[%clk 0:04:54.8]} 9. O-O-O {[%clk 0:04:49]} 9... O-O
{[%clk 0:04:52.1]} 10. Nxc6 {[%clk 0:04:47.6]} 10... bxc6 {[%clk 0:04:52]} 11.
Qxd6 {[%clk 0:04:46.8]} 11... Qa5 {[%clk 0:04:51.5]} 12. Bc4 {[%clk 0:04:41.7]}
12... f5 {[%clk 0:04:45]} 13. exf5 {[%clk 0:04:25]} 13... Bxf5 {[%clk
0:04:44.9]} 14. Bb3 {[%clk 0:04:17.7]} 14... Rab8 {[%clk 0:04:33.6]} 15. h3
{[%clk 0:04:12.1]} 15... Rxb3 {[%clk 0:04:18.8]} 16. axb3 {[%clk 0:04:04.2]}
16... Qa1+ {[%clk 0:04:10.7]} 17. Kd2 {[%clk 0:04:02.8]} 17... Qxb2 {[%clk
0:04:10.6]} 18. Ne2 {[%clk 0:03:49]} 18... Bxc2 {[%clk 0:04:00.3]} 19. Ke3
{[%clk 0:03:46.6]} 19... Qxb3+ {[%clk 0:03:53.4]} 20. Kf4 {[%clk 0:03:44.2]}
20... Bxd1 {[%clk 0:03:49.2]} 21. Ng3 {[%clk 0:03:36.5]} 21... Bh6+ {[%clk
0:03:45.2]} 22. Ke5 {[%clk 0:03:11.6]} 22... Bg7+ {[%clk 0:03:42.7]} 23. Kf4
{[%clk 0:03:08.1]} 23... Bh6+ {[%clk 0:03:41.3]} 24. Ke5 {[%clk 0:03:06.8]}
24... Re8+ {[%clk 0:03:36.3]} 25. Kd4 {[%clk 0:03:01.9]} 25... Bg7+ {[%clk
0:03:34.3]} 26. Qe5 {[%clk 0:01:12.6]} 26... Bxe5+ {[%clk 0:03:29.9]} 27. Kc5
{[%clk 0:01:11.3]} 27... Qb5# {[%clk 0:03:28.5]} 0-1

[Event "Live Chess"]
[Site "Chess.com"]
[Date "2023.05.21"]
[Round "-"]
[White "CeladonFish"]
[Black "srichess4u"]
[Result "1-0"]
[WhiteElo "1136"]
[BlackElo "611"]
[TimeControl "300"]
[EndTime "5:13:16 PDT"]
[Termination "CeladonFish won by resignation"]

1. d4 {[%clk 0:04:58.3]} 1... d5 {[%clk 0:04:58.4]} 2. c4 {[%clk 0:04:56.5]}
2... dxc4 {[%clk 0:04:56.4]} 3. Nc3 {[%clk 0:04:54.2]} 3... Nc6 {[%clk
0:04:53.6]} 4. Bf4 {[%clk 0:04:52.2]} 4... Bf5 {[%clk 0:04:50.4]} 5. Nf3 {[%clk
0:04:47.2]} 5... Bg4 {[%clk 0:04:47.1]} 6. e3 {[%clk 0:04:45.8]} 6... f5 {[%clk
0:04:41.9]} 7. Nb5 {[%clk 0:04:42.2]} 7... Nb4 {[%clk 0:04:37.5]} 8. Nxc7+
{[%clk 0:04:38.7]} 8... Kd7 {[%clk 0:04:26.5]} 9. Qa4+ {[%clk 0:04:32.1]} 9...
Nc6 {[%clk 0:04:23.5]} 10. Nxa8 {[%clk 0:04:27.9]} 10... Qxa8 {[%clk 0:04:21.6]}
11. Ne5+ {[%clk 0:04:17.5]} 11... Kd6 {[%clk 0:04:17.8]} 12. Nf7+ {[%clk
0:04:08.5]} 12... Ke6 {[%clk 0:04:14.9]} 13. Nxh8 {[%clk 0:04:07.3]} 1-0

[Event "Live Chess"]
[Site "Chess.com"]
[Date "2023.05.21"]
[Round "-"]
[White "ViktorTheCoolBoy"]
[Black "Nazar_777"]
[Result "1-0"]
[WhiteElo "2472"]
[BlackElo "1557"]
[TimeControl "300"]
[EndTime "5:13:38 PDT"]
[Termination "ViktorTheCoolBoy won by checkmate"]

1. e4 {[%clk 0:04:56.8]} 1... e6 {[%clk 0:04:58]} 2. Nf3 {[%clk 0:04:55.9]} 2...
a6 {[%clk 0:04:57.2]} 3. d4 {[%clk 0:04:54.7]} 3... h5 {[%clk 0:04:55]} 4. Nc3
{[%clk 0:04:51.3]} 4... c5 {[%clk 0:04:54]} 5. d5 {[%clk 0:04:50]} 5... Nf6
{[%clk 0:04:52.3]} 6. e5 {[%clk 0:04:49.2]} 6... Ng8 {[%clk 0:04:51.1]} 7. a4
{[%clk 0:04:45.3]} 7... Nh6 {[%clk 0:04:48.9]} 8. Bg5 {[%clk 0:04:43.4]} 8...
Qb6 {[%clk 0:04:46.1]} 9. Qd2 {[%clk 0:04:38.1]} 9... Ng4 {[%clk 0:04:43.6]} 10.
h3 {[%clk 0:04:36.2]} 10... Nh6 {[%clk 0:04:42.2]} 11. Bc4 {[%clk 0:04:32.9]}
11... g6 {[%clk 0:04:40.4]} 12. a5 {[%clk 0:04:28.5]} 12... Qa7 {[%clk
0:04:37.6]} 13. Bf6 {[%clk 0:04:24.5]} 13... Rg8 {[%clk 0:04:35.7]} 14. O-O-O
{[%clk 0:04:23.2]} 14... Nf5 {[%clk 0:04:33.7]} 15. g4 {[%clk 0:04:22]} 15...
Ne7 {[%clk 0:04:31.3]} 16. dxe6 {[%clk 0:04:19.3]} 16... fxe6 {[%clk 0:04:27.2]}
17. Ng5 {[%clk 0:04:17.7]} 17... Nbc6 {[%clk 0:04:24.4]} 18. Nce4 {[%clk
0:04:15.5]} 18... Nd4 {[%clk 0:04:17.6]} 19. c3 {[%clk 0:04:12.5]} 19... Ndc6
{[%clk 0:03:58.6]} 20. Nd6+ {[%clk 0:04:02.9]} 20... Kd8 {[%clk 0:03:53.4]} 21.
Nxc8 {[%clk 0:04:01.9]} 21... Kxc8 {[%clk 0:03:36.9]} 22. Qxd7+ {[%clk
0:04:00.2]} 22... Kb8 {[%clk 0:03:36]} 23. Qe8+ {[%clk 0:03:54.3]} 23... Nc8
{[%clk 0:03:04.5]} 24. Bxe6 {[%clk 0:03:51.5]} 24... Ne7 {[%clk 0:02:33.6]} 25.
Bxe7 {[%clk 0:03:47]} 25... Bxe7 {[%clk 0:02:32.1]} 26. Qxg8 {[%clk 0:03:45.7]}
26... Kc7 {[%clk 0:02:25.5]} 27. Ne4 {[%clk 0:03:41.5]} 27... c4 {[%clk
0:02:19]} 28. Qe8 {[%clk 0:03:37.5]} 28... Bg5+ {[%clk 0:01:34.7]} 29. Nxg5
{[%clk 0:03:35.5]} 29... Qxf2 {[%clk 0:01:32.4]} 30. Qd7+ {[%clk 0:03:33.3]}
30... Kb8 {[%clk 0:01:30.3]} 31. Qxc8+ {[%clk 0:03:32.1]} 31... Ka7 {[%clk
0:01:29.1]} 32. Qxc4 {[%clk 0:03:30.4]} 32... Qe3+ {[%clk 0:01:25.9]} 33. Kb1
{[%clk 0:03:28.9]} 33... Qxg5 {[%clk 0:01:24.7]} 34. Qc5+ {[%clk 0:03:27.6]}
34... Kb8 {[%clk 0:01:21.5]} 35. Rhf1 {[%clk 0:03:26.9]} 35... b5 {[%clk
0:01:08.7]} 36. Qb6# {[%clk 0:03:24.6]} 1-0

[Event "Live Chess"]
[Site "Chess.com"]
[Date "2023.05.21"]
[Round "-"]
[White "RockTroll"]
[Black "jumush"]
[Result "1/2-1/2"]
[WhiteElo "2213"]
[BlackElo "1745"]
[TimeControl "300"]
[EndTime "5:13:51 PDT"]
[Termination "Game drawn by agreement"]

1. Nf3 {[%clk 0:04:58.8]} 1... d5 {[%clk 0:04:54.5]} 2. g3 {[%clk 0:04:58.7]}
2... c5 {[%clk 0:04:52.1]} 3. Bg2 {[%clk 0:04:58.6]} 3... Nc6 {[%clk 0:04:50.7]}
4. d4 {[%clk 0:04:57.8]} 4... e6 {[%clk 0:04:49.3]} 5. O-O {[%clk 0:04:56.3]}
5... Nf6 {[%clk 0:04:47.7]} 6. c4 {[%clk 0:04:56]} 6... Be7 {[%clk 0:04:46.2]}
7. cxd5 {[%clk 0:04:54.7]} 7... exd5 {[%clk 0:04:44.6]} 8. dxc5 {[%clk
0:04:52.6]} 8... Bxc5 {[%clk 0:04:42.7]} 9. b3 {[%clk 0:04:50.6]} 9... O-O
{[%clk 0:04:40.1]} 10. Bb2 {[%clk 0:04:49.9]} 10... Be7 {[%clk 0:04:35.6]} 11.
Nc3 {[%clk 0:04:48.8]} 11... Be6 {[%clk 0:04:28.9]} 12. Nd4 {[%clk 0:04:41.7]}
12... Nxd4 {[%clk 0:04:19.9]} 13. Qxd4 {[%clk 0:04:40]} 13... Qd7 {[%clk
0:04:18.5]} 14. Rfd1 {[%clk 0:04:38.2]} 14... Rfd8 {[%clk 0:04:16.8]} 15. Rac1
{[%clk 0:04:11]} 15... b6 {[%clk 0:04:14.4]} 16. Qa4 {[%clk 0:03:53.4]} 16...
Qxa4 {[%clk 0:04:08.2]} 17. Nxa4 {[%clk 0:03:52.7]} 17... Rac8 {[%clk
0:04:04.1]} 18. Rxc8 {[%clk 0:03:50]} 18... Rxc8 {[%clk 0:04:01.9]} 19. Nc3
{[%clk 0:03:48.7]} 19... Rd8 {[%clk 0:03:51.8]} 20. e3 {[%clk 0:03:47.8]} 20...
h6 {[%clk 0:03:48.9]} 21. h3 {[%clk 0:03:46.1]} 21... Bc5 {[%clk 0:03:29.5]} 22.
Ne2 {[%clk 0:03:44.1]} 22... Be7 {[%clk 0:03:22.7]} 23. Nf4 {[%clk 0:03:41.3]}
23... g5 {[%clk 0:03:12.2]} 24. Bxf6 {[%clk 0:03:38.3]} 24... Bxf6 {[%clk
0:03:10.5]} 25. Nxd5 {[%clk 0:03:36.8]} 25... Bxd5 {[%clk 0:02:59.2]} 26. Bxd5
{[%clk 0:03:34.6]} 26... Kg7 {[%clk 0:02:55.9]} 27. e4 {[%clk 0:03:33.3]} 27...
Rc8 {[%clk 0:02:49.2]} 28. Rd2 {[%clk 0:03:31.2]} 28... Rc1+ {[%clk 0:02:46.6]}
29. Kg2 {[%clk 0:03:30.7]} 29... Bc3 {[%clk 0:02:37.3]} 30. Re2 {[%clk
0:03:27.2]} 30... Kf6 {[%clk 0:02:27.6]} 31. f4 {[%clk 0:03:23.7]} 31... Rb1
{[%clk 0:02:23.9]} 32. Kf3 {[%clk 0:03:20.6]} 32... Rb2 {[%clk 0:02:21.9]} 33.
e5+ {[%clk 0:03:15.9]} 33... Ke7 {[%clk 0:02:16.4]} 34. Rxb2 {[%clk 0:03:06.2]}
34... Bxb2 {[%clk 0:02:14.5]} 35. Kg4 {[%clk 0:02:56.6]} 35... gxf4 {[%clk
0:02:12.3]} 36. gxf4 {[%clk 0:02:55.2]} 36... Bc1 {[%clk 0:02:07.9]} 37. Kf5
{[%clk 0:02:45.1]} 37... a5 {[%clk 0:02:04.2]} 38. a4 {[%clk 0:02:42.4]} 38...
Be3 {[%clk 0:01:58.3]} 39. Ke4 {[%clk 0:02:40.9]} 39... Bc5 {[%clk 0:01:56]} 40.
f5 {[%clk 0:02:40]} 40... Bf2 {[%clk 0:01:49.6]} 41. f6+ {[%clk 0:02:39]} 41...
Kf8 {[%clk 0:01:47]} 42. Bc4 {[%clk 0:02:37.4]} 42... h5 {[%clk 0:01:38.6]} 43.
Kd5 {[%clk 0:02:34]} 43... h4 {[%clk 0:01:36.4]} 44. Kd6 {[%clk 0:02:30.9]}
44... Bd4 {[%clk 0:01:34.4]} 45. Kd5 {[%clk 0:02:25.2]} 45... Bc5 {[%clk
0:01:31.8]} 46. e6 {[%clk 0:02:23.5]} 46... fxe6+ {[%clk 0:01:30.1]} 47. Kxe6
{[%clk 0:02:23.4]} 47... Bd4 {[%clk 0:01:28.2]} 48. Kf5 {[%clk 0:02:15.4]} 48...
Bf2 {[%clk 0:01:24.8]} 49. Kg5 {[%clk 0:02:13.4]} 49... Bg3 {[%clk 0:01:22.7]}
50. Kf5 {[%clk 0:02:09.8]} 50... Be1 {[%clk 0:01:21.6]} 51. Ke6 {[%clk
0:02:09.1]} 51... Bg3 {[%clk 0:01:20.5]} 52. Kd7 {[%clk 0:02:07.8]} 52... Bf2
{[%clk 0:01:19.3]} 53. Kc6 {[%clk 0:02:06.1]} 53... Be3 {[%clk 0:01:17.7]} 54.
Kb5 {[%clk 0:02:04.8]} 54... Bc5 {[%clk 0:01:16.4]} 55. Be6 {[%clk 0:01:58.7]}
55... Bd4 {[%clk 0:01:14.6]} 56. b4 {[%clk 0:01:57.2]} 56... axb4 {[%clk
0:01:13]} 57. Kxb4 {[%clk 0:01:56.4]} 57... Bxf6 {[%clk 0:01:11.7]} 58. Kb5
{[%clk 0:01:54.5]} 58... Bd4 {[%clk 0:01:10.7]} 1/2-1/2

[Event "Live Chess"]
[Site "Chess.com"]
[Date "2023.05.21"]
[Round "-"]
[White "Pandreq"]
[Black "grillage"]
[Result "0-1"]
[WhiteElo "1212"]
[BlackElo "1816"]
[TimeControl "300"]
[EndTime "5:14:01 PDT"]
[Termination "grillage won by resignation"]

1. d4 {[%clk 0:04:59.4]} 1... Nf6 {[%clk 0:04:57.6]} 2. c4 {[%clk 0:04:58.7]}
2... e6 {[%clk 0:04:55.2]} 3. Nc3 {[%clk 0:04:58]} 3... Bb4 {[%clk 0:04:53.2]}
4. a3 {[%clk 0:04:54.6]} 4... Bxc3+ {[%clk 0:04:51.7]} 5. bxc3 {[%clk
0:04:54.5]} 5... O-O {[%clk 0:04:45.6]} 6. Bg5 {[%clk 0:04:53.1]} 6... c5 {[%clk
0:04:42.8]} 7. e4 {[%clk 0:04:50.8]} 7... Qa5 {[%clk 0:04:28.8]} 8. Qc2 {[%clk
0:04:37]} 8... Nxe4 {[%clk 0:04:18]} 9. Bd2 {[%clk 0:04:13.8]} 9... Nxd2 {[%clk
0:04:11.1]} 10. Qxd2 {[%clk 0:04:13.7]} 10... Nc6 {[%clk 0:04:05.7]} 11. d5
{[%clk 0:04:10.5]} 11... exd5 {[%clk 0:03:54.2]} 12. cxd5 {[%clk 0:04:09.4]}
12... Re8+ {[%clk 0:03:51.9]} 13. Be2 {[%clk 0:04:05.7]} 13... Ne5 {[%clk
0:03:48.8]} 14. f4 {[%clk 0:03:44.1]} 14... Nc4 {[%clk 0:03:45.7]} 15. Qc1
{[%clk 0:03:26.9]} 15... d6 {[%clk 0:03:41.1]} 16. Kf1 {[%clk 0:03:15]} 16...
Ne3+ {[%clk 0:03:32.7]} 17. Kf2 {[%clk 0:03:07]} 17... Nxd5 {[%clk 0:03:30.7]}
18. Bc4 {[%clk 0:02:57.1]} 18... Nxc3 {[%clk 0:03:17.7]} 19. Nf3 {[%clk
0:02:30.8]} 19... Ne4+ {[%clk 0:03:12.8]} 20. Kf1 {[%clk 0:02:23.2]} 20... Bg4
{[%clk 0:03:04.5]} 21. Ne1 {[%clk 0:02:06.1]} 21... Nd2+ {[%clk 0:02:57.2]} 22.
Kg1 {[%clk 0:01:56.1]} 22... Nxc4 {[%clk 0:02:49.6]} 23. Qxc4 {[%clk 0:01:43.7]}
23... Rxe1+ {[%clk 0:02:47.1]} 24. Kf2 {[%clk 0:01:41.1]} 24... Rxh1 {[%clk
0:02:35]} 25. Rxh1 {[%clk 0:01:36.8]} 25... Qd2+ {[%clk 0:02:33.2]} 26. Kg3
{[%clk 0:01:34.9]} 26... h5 {[%clk 0:02:27.5]} 27. Rb1 {[%clk 0:01:23.9]} 27...
Qe3+ {[%clk 0:02:13.8]} 28. Kh4 {[%clk 0:01:16.3]} 28... Qf2+ {[%clk 0:02:07.2]}
29. Kg5 {[%clk 0:01:06.4]} 29... Qxg2 {[%clk 0:01:46.6]} 30. Qxf7+ {[%clk
0:00:23.4]} 30... Kxf7 {[%clk 0:01:41.8]} 31. Rxb7+ {[%clk 0:00:22.5]} 31...
Qxb7 {[%clk 0:01:39.9]} 0-1

[Event "Live Chess"]
[Site "Chess.com"]
[Date "2023.05.21"]
[Round "-"]
[White "Ginger_GM"]
[Black "Nakula1000"]
[Result "0-1"]
[WhiteElo "2715"]
[BlackElo "911"]
[TimeControl "300"]
[EndTime "5:14:13 PDT"]
[Termination "Nakula1000 won - game abandoned"]

1. e4 {[%clk 0:04:56.9]} 1... a5 {[%clk 0:04:56.8]} 2. Bc4 {[%clk 0:04:54.9]}
2... e6 {[%clk 0:04:54.5]} 3. Nc3 {[%clk 0:04:53.3]} 3... Nf6 {[%clk 0:04:50.9]}
4. e5 {[%clk 0:04:51.7]} 4... d5 {[%clk 0:04:40.1]} 5. Bb5+ {[%clk 0:04:44.5]}
5... c6 {[%clk 0:04:20.7]} 6. Bf1 {[%clk 0:04:37.9]} 6... Nfd7 {[%clk
0:04:18.6]} 7. d4 {[%clk 0:04:36.8]} 7... c5 {[%clk 0:04:15.1]} 8. Nf3 {[%clk
0:04:25.1]} 8... Nc6 {[%clk 0:04:09.5]} 9. Nb5 {[%clk 0:04:20]} 9... cxd4 {[%clk
0:04:03.3]} 10. Bf4 {[%clk 0:04:14]} 10... Bb4+ {[%clk 0:04:01]} 11. c3 {[%clk
0:04:13.2]} 11... dxc3 {[%clk 0:03:58]} 12. bxc3 {[%clk 0:04:13.1]} 12... Bxc3+
{[%clk 0:03:56.3]} 13. Nxc3 {[%clk 0:04:11.5]} 13... f5 {[%clk 0:03:51.4]} 14.
Bd3 {[%clk 0:04:06.4]} 14... O-O {[%clk 0:03:46.5]} 15. O-O {[%clk 0:04:05.3]}
15... h6 {[%clk 0:03:43.9]} 16. h4 {[%clk 0:04:03.7]} 16... Nc5 {[%clk 0:03:42]}
17. Nb5 {[%clk 0:04:02.2]} 17... b6 {[%clk 0:03:40.3]} 18. Nd6 {[%clk
0:04:00.7]} 18... Nb4 {[%clk 0:03:38.1]} 19. Bb5 {[%clk 0:03:59.1]} 19... Ba6
{[%clk 0:03:06.9]} 20. a3 {[%clk 0:03:53.4]} 20... Nbd3 {[%clk 0:03:00.8]} 21.
Qd2 {[%clk 0:03:48.4]} 21... Bxb5 {[%clk 0:02:58.4]} 22. Nxb5 {[%clk 0:03:47.6]}
22... Nxf4 {[%clk 0:02:55.7]} 23. Qxf4 {[%clk 0:03:46.2]} 23... Kh7 {[%clk
0:02:53.6]} 24. Rab1 {[%clk 0:03:43.8]} 24... g6 {[%clk 0:02:51.4]} 25. Nbd4
{[%clk 0:03:42.4]} 25... Ra7 {[%clk 0:02:48.7]} 26. Rfc1 {[%clk 0:03:39.2]}
26... Qa8 {[%clk 0:02:42.3]} 27. Rxb6 {[%clk 0:03:36.5]} 27... Nd3 {[%clk
0:02:33.7]} 28. Qe3 {[%clk 0:03:32.7]} 28... Nxc1 {[%clk 0:02:32.2]} 29. Qxc1
{[%clk 0:03:31.3]} 29... Rc8 {[%clk 0:02:29.4]} 30. Qf4 {[%clk 0:03:30]} 30...
Re7 {[%clk 0:02:07.9]} 31. Rxe6 {[%clk 0:03:27]} 31... Rxe6 {[%clk 0:01:13.4]}
32. Nxe6 {[%clk 0:03:26.9]} 32... Qc6 {[%clk 0:01:11.4]} 33. Ned4 {[%clk
0:03:15.8]} 33... Qc1+ {[%clk 0:01:08.7]} 34. Qxc1 {[%clk 0:03:14.8]} 34...
Rxc1+ {[%clk 0:01:06.4]} 35. Kh2 {[%clk 0:03:14.7]} 35... Rf1 {[%clk 0:01:04.1]}
36. Kg3 {[%clk 0:03:13.3]} 36... Kg7 {[%clk 0:01:02.3]} 37. h5 {[%clk
0:03:10.4]} 37... f4+ {[%clk 0:01:00.2]} 38. Kxf4 {[%clk 0:03:09.1]} 38... Rxf2
{[%clk 0:00:58.4]} 39. hxg6 {[%clk 0:03:08.2]} 39... Kxg6 {[%clk 0:00:57.2]} 40.
g4 {[%clk 0:03:06.8]} 40... a4 {[%clk 0:00:54]} 41. Ke3 {[%clk 0:02:56.3]} 41...
Ra2 {[%clk 0:00:51.4]} 42. Nb5 {[%clk 0:02:55.4]} 42... Kf7 {[%clk 0:00:48.7]}
43. Nfd4 {[%clk 0:02:51.1]} 43... Ra1 {[%clk 0:00:44.5]} 44. Kf4 {[%clk
0:02:45.2]} 44... Rf1+ {[%clk 0:00:42.1]} 45. Kg3 {[%clk 0:02:44.4]} 45... Rg1+
{[%clk 0:00:39.2]} 46. Kf3 {[%clk 0:02:42.5]} 46... Rf1+ {[%clk 0:00:37.6]} 47.
Ke2 {[%clk 0:02:41.7]} 47... Rf4 {[%clk 0:00:35.9]} 48. Ke3 {[%clk 0:02:34.6]}
48... Re4+ {[%clk 0:00:32.1]} 49. Kf3 {[%clk 0:02:32.6]} 49... Rxe5 {[%clk
0:00:25.1]} 50. Nc3 {[%clk 0:02:26]} 50... Re1 {[%clk 0:00:18.1]} 51. Nxa4
{[%clk 0:02:24.5]} 51... Re4 {[%clk 0:00:16.1]} 52. Nc3 {[%clk 0:02:17.4]} 52...
Rxd4 {[%clk 0:00:14.5]} 53. Nb5 {[%clk 0:02:12.7]} 53... Ra4 {[%clk 0:00:13]}
54. Kg3 {[%clk 0:02:10.5]} 54... Ke6 {[%clk 0:00:11.6]} 55. Kf3 {[%clk 0:02:10]}
55... Ke5 {[%clk 0:00:10.7]} 56. Ke3 {[%clk 0:02:08]} 56... Rxg4 {[%clk
0:00:07.8]} 57. Kd3 {[%clk 0:02:06.6]} 57... h5 {[%clk 0:00:06.2]} 58. Nc3
{[%clk 0:02:05.1]} 58... h4 {[%clk 0:00:06.1]} 59. Ne2 {[%clk 0:02:02.6]} 59...
h3 {[%clk 0:00:06]} 60. Ke3 {[%clk 0:01:59.9]} 60... h2 {[%clk 0:00:05.9]} 61.
Kf3 {[%clk 0:01:59.8]} 61... h1=Q+ {[%clk 0:00:05.8]} 62. Kxg4 {[%clk
0:01:59.2]} 62... Qe4+ {[%clk 0:00:04]} 63. Kg3 {[%clk 0:01:57.4]} 63... Qxe2
{[%clk 0:00:03.3]} 64. a4 {[%clk 0:01:56.5]} 64... d4 {[%clk 0:00:03.1]} 0-1

[Event "Live Chess"]
[Site "Chess.com"]
[Date "2023.05.21"]
[Round "-"]
[White "Sha_25"]
[Black "AbilifyXL"]
[Result "0-1"]
[WhiteElo "1138"]
[BlackElo "1961"]
[TimeControl "300"]
[EndTime "5:14:22 PDT"]
[Termination "AbilifyXL won by checkmate"]

1. d4 {[%clk 0:04:56.2]} 1... d5 {[%clk 0:04:59.9]} 2. Nc3 {[%clk 0:04:54.3]}
2... c6 {[%clk 0:04:59.8]} 3. Nf3 {[%clk 0:04:52.1]} 3... Nf6 {[%clk 0:04:59.1]}
4. Bf4 {[%clk 0:04:49.7]} 4... Bf5 {[%clk 0:04:58.3]} 5. e3 {[%clk 0:04:48.8]}
5... e6 {[%clk 0:04:56.9]} 6. Bd3 {[%clk 0:04:48]} 6... Bg6 {[%clk 0:04:55.9]}
7. Ne2 {[%clk 0:04:40.7]} 7... Bd6 {[%clk 0:04:54.7]} 8. Bg3 {[%clk 0:04:38.7]}
8... O-O {[%clk 0:04:53.5]} 9. c4 {[%clk 0:04:37.2]} 9... Qc7 {[%clk 0:04:37.3]}
10. Qc2 {[%clk 0:04:30.7]} 10... dxc4 {[%clk 0:04:27.4]} 11. Bxg6 {[%clk
0:04:28]} 11... hxg6 {[%clk 0:04:25.5]} 12. Qxc4 {[%clk 0:04:23.5]} 12... Nbd7
{[%clk 0:04:24.5]} 13. Rc1 {[%clk 0:04:18.9]} 13... Ne4 {[%clk 0:04:17.2]} 14.
O-O {[%clk 0:03:58.8]} 14... Bxg3 {[%clk 0:04:14]} 15. Nxg3 {[%clk 0:03:58.7]}
15... Ndf6 {[%clk 0:04:03.1]} 16. Nxe4 {[%clk 0:03:55.8]} 16... Nxe4 {[%clk
0:04:02]} 17. Qd3 {[%clk 0:03:45]} 17... Nf6 {[%clk 0:03:58.7]} 18. Rc5 {[%clk
0:03:22.7]} 18... Rad8 {[%clk 0:03:56.4]} 19. Rg5 {[%clk 0:03:18.5]} 19... Rfe8
{[%clk 0:03:49.4]} 20. Rc1 {[%clk 0:03:11.3]} 20... Rd5 {[%clk 0:03:43.7]} 21.
Ne5 {[%clk 0:03:05.5]} 21... Nd7 {[%clk 0:03:37.1]} 22. Qe4 {[%clk 0:02:53.3]}
22... Nxe5 {[%clk 0:02:52.8]} 23. Rxe5 {[%clk 0:02:49.4]} 23... Rxe5 {[%clk
0:02:50.9]} 24. Qxe5 {[%clk 0:02:49.3]} 24... Qxe5 {[%clk 0:02:49.8]} 25. dxe5
{[%clk 0:02:49.2]} 25... Rd8 {[%clk 0:02:49]} 26. Rb1 {[%clk 0:02:40.2]} 26...
Rd2 {[%clk 0:02:45.6]} 27. g3 {[%clk 0:02:37.5]} 27... Kf8 {[%clk 0:02:44.2]}
28. Kg2 {[%clk 0:02:33.2]} 28... Ke7 {[%clk 0:02:42.7]} 29. h4 {[%clk
0:02:14.7]} 29... b6 {[%clk 0:02:37.5]} 30. a3 {[%clk 0:02:11.4]} 30... c5
{[%clk 0:02:36.4]} 31. b4 {[%clk 0:02:09.7]} 31... c4 {[%clk 0:02:34.8]} 32. b5
{[%clk 0:02:05.3]} 32... Rd5 {[%clk 0:02:19.6]} 33. Rb4 {[%clk 0:02:03.2]} 33...
c3 {[%clk 0:02:01.4]} 34. Rc4 {[%clk 0:02:00.6]} 34... Rc5 {[%clk 0:02:00.4]}
35. Rxc5 {[%clk 0:01:58.9]} 35... bxc5 {[%clk 0:01:59.6]} 36. Kf1 {[%clk
0:01:56.5]} 36... c2 {[%clk 0:01:57.9]} 37. Ke2 {[%clk 0:01:55.6]} 37... c1=Q
{[%clk 0:01:56]} 38. Kf3 {[%clk 0:01:55.1]} 38... Qxa3 {[%clk 0:01:54]} 39. Kf4
{[%clk 0:01:54.4]} 39... Qb4+ {[%clk 0:01:50.7]} 40. e4 {[%clk 0:01:54.3]} 40...
Qxb5 {[%clk 0:01:49.3]} 41. h5 {[%clk 0:01:52.7]} 41... gxh5 {[%clk 0:01:48.2]}
42. g4 {[%clk 0:01:52.2]} 42... hxg4 {[%clk 0:01:47]} 43. Kxg4 {[%clk
0:01:50.6]} 43... Qe2+ {[%clk 0:01:44.8]} 44. f3 {[%clk 0:01:50.5]} 44... c4
{[%clk 0:01:43.8]} 45. Kf4 {[%clk 0:01:50.4]} 45... c3 {[%clk 0:01:43]} 46. Kg4
{[%clk 0:01:49.7]} 46... c2 {[%clk 0:01:42.4]} 47. Kg5 {[%clk 0:01:49.4]} 47...
c1=Q+ {[%clk 0:01:41.5]} 48. f4 {[%clk 0:01:49.3]} 48... Qg2+ {[%clk 0:01:40.1]}
49. Kh5 {[%clk 0:01:48.4]} 49... Qch1# {[%clk 0:01:38.5]} 0-1

[Event "Live Chess"]
[Site "Chess.com"]
[Date "2023.05.21"]
[Round "-"]
[White "garyjc"]
[Black "gmnorfolk"]
[Result "0-1"]
[WhiteElo "1045"]
[BlackElo "2121"]
[TimeControl "300"]
[EndTime "5:14:25 PDT"]
[Termination "gmnorfolk won by resignation"]

1. e4 {[%clk 0:04:56.6]} 1... c5 {[%clk 0:04:58.4]} 2. Nc3 {[%clk 0:04:54.9]}
2... d6 {[%clk 0:04:57.7]} 3. f4 {[%clk 0:04:53.6]} 3... g6 {[%clk 0:04:57.1]}
4. Nf3 {[%clk 0:04:49.7]} 4... Bg7 {[%clk 0:04:56.6]} 5. Bc4 {[%clk 0:04:44.6]}
5... Nc6 {[%clk 0:04:55.5]} 6. O-O {[%clk 0:04:33.7]} 6... e6 {[%clk 0:04:52.7]}
7. Qe1 {[%clk 0:04:22.1]} 7... Nge7 {[%clk 0:04:50.4]} 8. d3 {[%clk 0:04:16.1]}
8... O-O {[%clk 0:04:48.1]} 9. Bd2 {[%clk 0:03:55.5]} 9... d5 {[%clk 0:04:46.5]}
10. exd5 {[%clk 0:03:49.5]} 10... exd5 {[%clk 0:04:43.8]} 11. Bb3 {[%clk
0:03:39.1]} 11... Na5 {[%clk 0:04:42.8]} 12. Nh4 {[%clk 0:03:03.3]} 12... Nxb3
{[%clk 0:04:40.7]} 13. axb3 {[%clk 0:03:01.9]} 13... Nf5 {[%clk 0:04:33]} 14.
Nxf5 {[%clk 0:02:48]} 14... Bxf5 {[%clk 0:04:32.9]} 15. Qf2 {[%clk 0:02:40.6]}
15... d4 {[%clk 0:04:31.9]} 16. Ne4 {[%clk 0:02:36]} 16... b6 {[%clk 0:04:31.3]}
17. Rae1 {[%clk 0:02:29.4]} 17... Re8 {[%clk 0:04:29.2]} 18. Ng3 {[%clk
0:02:27.3]} 18... Qd7 {[%clk 0:04:27.9]} 19. Nxf5 {[%clk 0:02:12.3]} 19... Qxf5
{[%clk 0:04:26.2]} 20. Qf3 {[%clk 0:02:07]} 20... h5 {[%clk 0:04:20.9]} 21.
Rxe8+ {[%clk 0:02:03]} 21... Rxe8 {[%clk 0:04:18.5]} 22. Qb7 {[%clk 0:01:52.6]}
22... Re2 {[%clk 0:04:17]} 23. Bc1 {[%clk 0:01:38]} 23... Rxc2 {[%clk
0:04:13.2]} 24. Qxa7 {[%clk 0:01:35.2]} 24... Qd5 {[%clk 0:04:06.2]} 25. Qb8+
{[%clk 0:00:57.6]} 25... Kh7 {[%clk 0:04:04.2]} 26. Rf2 {[%clk 0:00:48.1]} 26...
Rxc1+ {[%clk 0:04:02.6]} 27. Rf1 {[%clk 0:00:45.4]} 27... Rc2 {[%clk 0:04:01.1]}
28. Rf2 {[%clk 0:00:37.3]} 28... Rxf2 {[%clk 0:03:59.2]} 29. Kxf2 {[%clk
0:00:35.5]} 29... Qxb3 {[%clk 0:03:58.6]} 30. Qd6 {[%clk 0:00:30.1]} 30... Qxd3
{[%clk 0:03:52.8]} 31. Qxb6 {[%clk 0:00:20.4]} 31... Qe3+ {[%clk 0:03:51.9]} 32.
Kf1 {[%clk 0:00:14]} 32... d3 {[%clk 0:03:51.3]} 0-1